bitfinex-derivatives/quotes_ETHF0:USTF0_20241229
["timestamp","ask_amount","ask_price","bid_price","bid_amount"]
[1735508106148,3.2078,3367.3,3366.9,0.29764]
[1735508106451,3.2078,3367.3,3366.6,4.62637364]
[1735508106654,0.29765,3366.8,3366.7,0.29765]
[1735508107352,0.4579,3367.2,3366.6,4.62637364]
[1735508107556,0.29766,3366.7,3366.6,4.62637364]
[1735508107856,0.29766,3366.7,3366.6,4.92404364]
[1735508108151,0.29766,3366.7,3366.6,0.29767]
[1735508110153,0.8905,3367.0,3366.5,3.2078]
[1735508110359,0.29767,3366.6,3366.5,3.2078]
[1735508110553,2.53856858,3366.6,3366.5,3.2078]
[1735508111060,7.24089858,3366.6,3366.2,4.62637364]
[1735508111262,2.53858858,3366.3,3366.2,4.62637364]
[1735508111760,3.39318858,3366.3,3366.2,4.62637364]
[1735508112963,4.56518858,3366.3,3366.2,4.62637364]
[1735508113460,0.29776,3365.6,3365.5,4.62637364]
[1735508114863,0.29776,3365.6,3365.2,12.46054728]
[1735508114864,5.44869858,3365.9,3365.2,3.2078]
[1735508115070,0.29777,3365.5,3365.2,3.2078]
[1735508115469,5.44869858,3365.9,3365.2,3.2078]
[1735508115669,0.29778,3365.4,3365.2,3.2078]
[1735508116267,0.29778,3365.4,3365.3,0.4382]
[1735508119071,3.2078,3365.4,3364.7,4.62637364]
[1735508119263,0.29783,3364.8,3364.7,4.62637364]
[1735508120668,0.74446,3365.3,3364.6,4.1079]
[1735508120868,0.29783,3364.7,3364.6,4.1079]
[1735508125679,0.29783,3364.7,3364.6,3.6533]
[1735508126174,3.2078,3364.8,3364.2,8.27447364]
[1735508126380,0.29785,3364.4,3364.3,0.4465]
[1735508128678,0.8669,3365.0,3364.3,0.4465]
[1735508128873,0.29782,3364.8,3364.7,0.29782]
[1735508129079,0.29782,3364.7,3364.6,3.50563]
[1735508129281,0.29782,3364.7,3364.6,3.50562]
[1735508129777,0.29782,3364.7,3364.6,3.2078]
[1735508129973,0.29782,3364.7,3364.6,0.29783]
[1735508131078,0.29782,3364.7,3364.6,3.50563]
[1735508132581,0.29782,3364.7,3364.6,3.2078]
[1735508133081,0.29782,3364.7,3364.6,3.50563]
[1735508135775,0.29782,3364.7,3364.6,3.2078]
[1735508137185,0.29783,3364.6,3364.5,3.50563]
[1735508138778,0.74449,3365.1,3364.5,3.2078]
[1735508138982,0.74449,3365.1,3364.6,0.29782]
[1735508138983,0.29782,3364.7,3364.6,0.29782]
[1735508141987,0.29782,3364.7,3364.6,3.50562]
[1735508143592,0.74442,3365.3,3364.6,3.2078]
[1735508143783,0.29782,3364.8,3364.7,0.29782]
[1735508145092,0.29782,3364.7,3364.6,3.50562]
[1735508145697,0.29782,3364.7,3364.6,0.29782]
[1735508145897,0.29782,3364.7,3364.6,3.50562]
[1735508146791,0.29782,3364.7,3364.6,3.2078]
[1735508147093,0.29784,3364.5,3364.4,4.62637364]
[1735508147398,0.29784,3364.5,3364.4,4.92422364]
[1735508147997,0.4582,3364.6,3364.5,0.29784]
[1735508148197,0.29781,3364.8,3364.7,0.29781]
[1735508148891,0.4277,3365.1,3364.6,3.2078]
[1735508149096,0.29782,3364.7,3364.6,3.50562]
[1735508149395,0.29782,3364.7,3364.6,3.2078]
[1735508150996,0.29782,3364.7,3364.6,3.50562]
[1735508151195,0.29781,3364.8,3364.7,0.29782]
[1735508151999,0.4277,3365.1,3364.6,3.2078]
[1735508152293,0.72548,3365.1,3365.0,3.2078]
[1735508153201,0.72548,3365.1,3365.0,3.6294]
[1735508153798,0.72548,3365.1,3365.0,0.4216]
[1735508154001,0.72548,3365.1,3365.0,3.6294]
[1735508156099,0.72548,3365.1,3365.0,8.25577364]
[1735508156701,0.72548,3365.1,3365.0,5.04797364]
[1735508156893,0.72548,3365.1,3365.0,8.25577364]
[1735508157503,0.72548,3365.1,3365.0,8.17899159]
[1735508158094,2.3316181,3365.8,3365.0,8.17899159]
[1735508158293,2.6293381,3365.8,3365.7,0.29773]
[1735508159098,0.29772,3365.8,3365.7,0.29773]
[1735508159498,2.7922181,3365.9,3365.6,0.8775]
[1735508159695,0.29773,3365.7,3365.6,1.17523]
[1735508160091,3.0899281,3365.9,3365.8,0.29771]
[1735508160296,0.29772,3365.8,3365.7,0.29772]
[1735508161303,0.29772,3365.7,3365.6,24.11038803]
[1735508161500,0.29772,3365.7,3365.6,23.81265803]
[1735508161702,0.29772,3365.7,3365.6,23.39035803]
[1735508162000,0.29772,3365.7,3365.6,9.28500114]
[1735508163203,0.29772,3365.7,3365.6,11.5108762]
[1735508168810,0.29772,3365.7,3365.6,4.548088]
[1735508170811,0.29772,3365.7,3365.6,9.18705048]
[1735508171805,0.29772,3365.7,3365.6,4.63896248]
[1735508175113,0.74542,3365.7,3365.6,4.63896248]
[1735508175316,0.29773,3365.6,3365.5,4.63896248]
[1735508176617,0.29775,3365.4,3365.3,4.63896248]
[1735508179820,0.29777,3365.2,3365.1,4.63896248]
[1735508180519,0.72567,3365.2,3365.1,4.63896248]
[1735508181221,2.96656858,3365.2,3365.1,4.63896248]
[1735508181614,2.66879858,3365.2,3364.9,4.63896248]
[1735508181814,0.29779,3365.0,3364.9,4.63896248]
[1735508182921,0.2978,3364.8,3364.7,4.63896248]
[1735508183122,0.2978,3364.8,3364.7,7.84676248]
[1735508184624,0.2978,3364.8,3364.7,4.63896248]
[1735508185527,0.2978,3364.8,3364.7,11.51314843]
[1735508187324,0.29782,3364.6,3364.5,7.3973882]
[1735508188326,0.29782,3364.6,3364.5,11.94663536]
[1735508191527,0.29782,3364.6,3364.5,4.98384716]
[1735508193236,0.29782,3364.6,3364.5,0.4346]
[1735508193432,0.29784,3364.4,3364.3,4.64285608]
[1735508194431,0.4548,3364.5,3364.1,4.64285608]
[1735508194631,0.29786,3364.2,3364.1,4.64285608]
[1735508195333,0.29786,3364.2,3364.1,4.94072608]
[1735508195838,0.29784,3364.4,3364.3,0.29784]
[1735508196529,0.29784,3364.4,3364.1,4.64285608]
[1735508196530,0.29785,3364.3,3364.2,0.29785]
[1735508197034,0.29785,3364.3,3364.2,7.2606382]
[1735508198638,0.29785,3364.3,3364.2,11.80707926]
[1735508200438,0.29785,3364.3,3364.2,11.50922926]
[1735508201334,0.29785,3364.3,3364.2,4.63947101]
[1735508203143,0.29786,3364.2,3364.1,7.84727101]
[1735508203839,0.29786,3364.2,3364.1,4.63947101]
[1735508204033,0.29786,3364.2,3364.1,7.84727101]
[1735508204736,0.29786,3364.2,3364.1,3.2078]
[1735508205240,0.29786,3364.2,3364.1,3.50567]
[1735508205442,0.29786,3364.2,3364.1,3.2078]
[1735508205935,0.29786,3364.2,3364.1,7.84727101]
[1735508207443,0.29786,3364.2,3364.1,4.54715509]
[1735508207636,0.29786,3364.2,3364.1,7.75495509]
[1735508208532,0.29786,3364.2,3364.1,3.2078]
[1735508210446,0.29786,3364.1,3364.0,3.6558]
[1735508210638,0.72506,3364.1,3364.0,3.6558]
[1735508211240,0.4495,3364.3,3364.0,3.6558]
[1735508211547,0.29786,3364.2,3364.1,0.29786]
[1735508212745,0.29787,3364.1,3364.0,3.95367]
[1735508214446,0.29787,3364.1,3364.0,8.30069013]
[1735508215849,0.29787,3364.1,3364.0,3.6558]
[1735508217140,0.29787,3364.1,3364.0,8.30069013]
[1735508217649,0.29787,3364.1,3364.0,5.09289013]
[1735508218146,0.29787,3364.1,3364.0,8.30069013]
[1735508218647,0.29787,3364.1,3364.0,5.09289013]
[1735508218851,0.29787,3364.1,3364.0,8.30069013]
[1735508219447,0.29787,3364.1,3364.0,7.85269013]
[1735508221244,0.29787,3364.1,3364.0,12.41245506]
[1735508222951,0.29787,3364.1,3364.0,7.76756493]
[1735508223851,0.29787,3364.1,3364.0,4.55976493]
[1735508224262,0.29787,3364.1,3364.0,11.52255313]
[1735508225352,0.4184,3364.2,3363.9,7.86581681]
[1735508225548,0.29787,3364.0,3363.9,7.86581681]
[1735508227559,0.29788,3363.9,3363.8,4.65801681]
[1735508227856,1.18498,3363.9,3363.8,4.65801681]
[1735508229262,0.8871,3363.9,3363.7,4.65801681]
[1735508229452,0.29789,3363.8,3363.7,4.65801681]
[1735508231050,0.29791,3363.6,3363.5,4.65801681]
[1735508231258,3.50571,3363.6,3363.5,4.65801681]
[1735508232666,3.50571,3363.6,3363.1,4.65801681]
[1735508232667,0.29794,3363.2,3363.1,4.65801681]
[1735508234270,0.29796,3363.0,3362.9,7.86581681]
[1735508235667,5.91079858,3363.1,3362.7,4.65801681]
[1735508235863,2.53887858,3362.8,3362.7,4.65801681]
[1735508236271,2.97897858,3362.8,3362.7,4.65801681]
[1735508236970,0.73808,3362.8,3362.7,4.65801681]
[1735508237472,0.29801,3362.5,3362.4,0.4471]
[1735508238269,0.29802,3362.3,3362.2,0.4526]
[1735508262490,0.29805,3362.0,3361.9,3.2078]
[1735508273699,0.4464,3362.2,3361.9,3.2078]
[1735508273900,0.29804,3362.2,3362.1,0.29803]
[1735508275798,4.7002881,3362.8,3362.1,0.29804]
[1735508275799,0.29802,3362.4,3362.1,0.29804]
[1735508276097,0.29801,3362.5,3362.4,0.29801]
[1735508277098,0.29802,3362.4,3362.3,0.72402]
[1735508277393,2.3316181,3362.7,3362.2,0.72723]
[1735508277600,0.29802,3362.3,3362.2,0.72723]
[1735508277894,0.29802,3362.3,3362.2,0.4292]
[1735508278294,2.53891858,3362.4,3362.3,4.56351535]
[1735508279092,3.41221858,3362.4,3362.3,4.56351535]
[1735508279703,0.29802,3362.3,3362.2,4.6630578]
[1735508280896,2.3316181,3362.3,3362.2,4.57091005]
[1735508281104,2.6296381,3362.3,3362.2,4.57091005]
[1735508281500,5.8374381,3362.3,3362.2,4.57091005]
[1735508282503,0.29803,3362.2,3362.1,6.99458671]
[1735508283195,0.29556953,3362.2,3362.1,6.99458671]
[1735508283795,5.29556953,3362.2,3362.1,6.99458671]
[1735508283998,5.29556953,3362.2,3362.1,4.6671939]
[1735508283999,8.49742715,3362.2,3362.1,4.6671939]
[1735508284203,8.79545715,3362.2,3362.1,4.6671939]
[1735508284502,3.79545715,3362.2,3362.1,4.6671939]
[1735508284692,8.79545715,3362.2,3362.1,3.4342239]
[1735508285100,9.07501627,3362.2,3362.1,3.4342239]
[1735508285401,8.79545715,3362.2,3362.1,3.4342239]
[1735508285805,0.29808,3361.7,3361.6,6.99458671]
[1735508286097,1.47108,3361.7,3361.6,6.99458671]
[1735508287203,1.173,3361.7,3361.2,6.99458671]
[1735508287507,0.2981,3361.4,3361.2,6.99458671]
[1735508288598,0.2981,3361.4,3361.3,11.98023806]
[1735508289705,2.34260396,3361.8,3361.6,0.29809]
[1735508289903,2.34260396,3361.8,3361.7,0.75578]
[1735508290402,2.34260396,3362.1,3361.7,0.4577]
[1735508290603,0.29807,3361.8,3361.7,0.4577]
[1735508291703,0.29808,3361.7,3361.6,3.2078]
[1735508293308,0.29808,3361.7,3361.6,14.7337758]
[1735508293609,0.29808,3361.7,3361.6,11.5259758]
[1735508294905,0.29808,3361.7,3361.6,4.53545918]
[1735508295110,0.29808,3361.7,3361.6,7.74325918]
[1735508296504,2.78470396,3362.2,3361.6,7.74325918]
[1735508296705,2.34260396,3362.2,3362.1,0.29804]
[1735508296906,1.64550396,3362.2,3362.1,0.29804]
[1735508297206,1.64550396,3362.2,3362.1,3.50584]
[1735508297702,0.29803,3362.3,3362.1,8.04129918]
[1735508297903,0.29803,3362.2,3362.1,7.74325918]
[1735508299615,0.74496,3362.8,3362.1,7.74325918]
[1735508299913,0.29803,3362.3,3362.1,7.74325918]
[1735508300210,0.29802,3362.4,3362.2,0.29803]
[1735508300406,0.29801,3362.5,3362.3,0.73512]
[1735508300706,0.298,3362.7,3362.4,0.29801]
[1735508300908,0.298,3362.7,3362.4,0.72141]
[1735508301204,3.96753258,3363.0,3362.6,3.2078]
[1735508301205,3.51473258,3363.0,3362.6,3.2078]
[1735508301410,3.51473258,3363.0,3362.8,0.29797]
[1735508301609,3.51473258,3363.0,3362.9,0.4238]
[1735508301805,0.29795,3363.1,3362.9,0.4238]
[1735508302012,0.29796,3363.0,3362.9,0.4238]
[1735508317219,0.29798,3362.8,3362.7,3.6622]
[1735508317523,0.29798,3362.8,3362.7,0.4544]
[1735508317921,0.29798,3362.8,3362.7,3.6622]
[1735508319213,0.29798,3362.8,3362.7,0.4544]
[1735508319415,0.29798,3362.8,3362.7,3.6622]
[1735508322213,0.29798,3362.8,3362.7,0.4544]
[1735508326012,0.29798,3362.9,3362.8,0.29797]
[1735508326218,0.29798,3362.8,3362.7,0.75238]
[1735508328026,0.29798,3362.8,3362.7,3.96018]
[1735508330531,0.29798,3362.8,3362.7,3.6622]
[1735508333831,0.29798,3362.8,3362.7,0.4544]
[1735508334135,0.29798,3362.8,3362.7,3.6622]
[1735508335530,0.29798,3362.8,3362.7,3.2078]
[1735508338829,0.29802,3362.4,3362.3,10.19297661]
[1735508339538,0.29802,3362.4,3362.3,3.2078]
[1735508341330,0.29802,3362.4,3362.3,7.7561906]
[1735508343034,0.4254,3362.5,3362.3,7.7561906]
[1735508343235,0.72341,3362.5,3362.3,3.94702]
[1735508343438,0.29802,3362.4,3362.3,3.649]
[1735508345031,0.29802,3362.4,3362.3,12.93400114]
[1735508345530,0.72341,3362.5,3362.3,13.23203114]
[1735508345730,0.4254,3362.5,3362.3,13.23203114]
[1735508345935,0.29802,3362.4,3362.3,12.93400114]
[1735508346331,0.29802,3362.4,3362.3,3.649]
[1735508347538,0.29802,3362.4,3362.3,17.61200562]
[1735508349338,0.29802,3362.4,3362.3,17.31397562]
[1735508350140,0.29802,3362.4,3362.3,26.63768932]
[1735508350343,0.29802,3362.4,3362.3,23.42988932]
[1735508350537,0.29802,3362.4,3362.3,26.63768932]
[1735508350738,0.29802,3362.4,3362.3,26.93571932]
[1735508353535,0.29802,3362.4,3362.3,26.63768932]
[1735508353743,0.29802,3362.4,3362.3,26.93571932]
[1735508354641,0.29802,3362.4,3362.3,26.19648932]
[1735508354838,0.75022,3362.4,3362.3,26.19648932]
[1735508357556,0.75022,3362.4,3362.3,7.76279187]
[1735508358047,0.75022,3362.4,3362.3,8.06082187]
[1735508358243,0.29802,3362.4,3362.3,8.06082187]
[1735508358542,0.29802,3362.4,3362.3,8.50902187]
[1735508359243,0.29802,3362.4,3362.3,8.21099187]
[1735508359439,0.29802,3362.4,3362.3,8.50902187]
[1735508362644,0.29802,3362.4,3362.3,8.21099187]
[1735508363147,0.29802,3362.4,3362.3,17.08650557]
[1735508364040,0.29802,3362.4,3362.3,13.87870557]
[1735508364748,0.29802,3362.4,3362.3,4.55499187]
[1735508370053,0.72262,3362.4,3362.3,4.55499187]
[1735508371157,0.72262,3362.4,3362.1,6.99409482]
[1735508371158,0.29803,3362.2,3362.1,6.99409482]
[1735508371353,1.36187343,3362.2,3362.1,6.99409482]
[1735508372846,1.06384343,3362.2,3362.0,6.99409482]
[1735508373152,1.82498343,3362.1,3362.0,6.99409482]
[1735508374344,1.82498343,3362.1,3361.8,9.3237137]
[1735508374345,1.52694343,3362.1,3361.9,6.99409482]
[1735508374545,0.74265,3362.0,3361.9,6.99409482]
[1735508375749,1.19685,3362.0,3361.9,11.54952805]
[1735508378449,0.29802,3362.4,3362.0,0.29805]
[1735508378643,0.29802,3362.4,3362.2,4.56967343]
[1735508379145,3.51473258,3362.5,3362.3,0.4563]
[1735508379343,3.51473258,3362.5,3362.4,1.36186343]
[1735508379749,0.298,3362.6,3362.4,1.36186343]
[1735508380254,0.29801,3362.5,3362.4,1.36186343]
[1735508380457,0.29802,3362.4,3362.3,11.54952805]
[1735508380648,1.82336343,3362.4,3362.3,11.54952805]
[1735508381553,0.29803,3362.2,3362.1,6.99409482]
[1735508382849,0.29803,3362.2,3362.1,11.55035805]
[1735508384258,1.36187343,3362.2,3362.1,11.55035805]
[1735508389063,0.29803,3362.2,3362.1,11.55035805]
[1735508389957,0.29803,3362.2,3362.1,4.85430323]
[1735508390359,1.48564343,3362.6,3362.1,4.55626323]
[1735508390561,0.29803,3362.3,3362.2,0.29803]
[1735508390755,0.29803,3362.3,3362.2,3.50583]
[1735508391654,4.39223258,3362.9,3362.2,4.27164343]
[1735508391856,0.29802,3362.5,3362.4,0.29801]
[1735508392054,0.29799,3362.7,3362.6,0.298]
[1735508392252,3.51473258,3362.9,3362.6,4.27164343]
[1735508392454,3.51473258,3362.9,3362.8,0.29798]
[1735508392654,1.06384343,3363.2,3362.6,3.5058]
[1735508392655,0.29799,3362.7,3362.6,3.5058]
[1735508392862,1.36183343,3362.7,3362.6,3.2078]
[1735508393964,1.36183343,3362.7,3362.6,14.76039198]
[1735508395063,1.36183343,3362.7,3362.6,11.55259198]
[1735508395263,1.36183343,3362.7,3362.6,14.76039198]
[1735508396261,0.29799,3362.7,3362.6,14.76039198]
[1735508396861,0.298,3362.6,3362.5,6.99632875]
[1735508397056,2.54540969,3362.6,3362.5,6.99632875]
[1735508398365,2.6946011,3362.6,3362.2,0.4479]
[1735508398559,0.29803,3362.3,3362.2,0.4479]
[1735508398762,0.29803,3362.3,3362.2,3.6557]
[1735508399164,0.441,3362.5,3362.0,6.99632875]
[1735508399366,0.29804,3362.1,3362.0,7.43162875]
[1735508399570,0.29804,3362.1,3362.0,9.76373834]
[1735508400567,0.29804,3362.1,3362.0,9.32843834]
[1735508400770,0.29804,3362.1,3362.0,11.5524088]
[1735508402172,3.12880969,3362.2,3361.9,6.99604447]
[1735508402475,0.29805,3362.0,3361.9,6.99604447]
[1735508403668,3.12880969,3362.2,3361.9,4.55436638]
[1735508403870,0.29805,3362.0,3361.9,4.55436638]
[1735508405480,0.29805,3362.0,3361.9,11.55041085]
[1735508405671,0.9061,3362.4,3361.9,11.55041085]
[1735508405672,0.29804,3362.2,3361.9,11.55041085]
[1735508405878,0.29804,3362.2,3362.0,0.8747]
[1735508406078,6.72183544,3362.5,3362.0,0.8747]
[1735508406079,7.01984544,3362.5,3362.3,0.29802]
[1735508406275,7.01984544,3362.5,3362.4,0.4446]
[1735508406783,3.50581,3362.5,3362.4,0.4446]
[1735508406976,3.2078,3362.5,3362.4,0.4446]
[1735508407176,0.29801,3362.5,3362.4,0.4446]
[1735508407790,0.29801,3362.5,3362.4,14.32740472]
[1735508408286,3.15350969,3363.1,3362.4,14.32740472]
[1735508408488,3.51403544,3363.2,3362.7,3.2078]
[1735508408688,0.29798,3362.9,3362.8,0.4287]
[1735508409792,0.29798,3362.9,3362.8,11.96897058]
[1735508411088,0.29798,3362.9,3362.8,4.98306638]
[1735508412687,0.29798,3362.9,3362.8,5.08433436]
[1735508413998,0.29797,3363.0,3362.8,5.38231436]
[1735508414295,0.29797,3363.0,3362.9,0.4571]
[1735508414695,0.29798,3362.8,3362.7,10.1937042]
[1735508414893,2.54538969,3362.8,3362.7,10.1937042]
[1735508415499,3.44998969,3362.8,3362.7,10.1937042]
[1735508415687,3.44998969,3362.8,3362.7,3.2078]
[1735508416891,0.298,3362.6,3362.5,4.65614996]
[1735508417294,0.29802,3362.4,3362.3,4.65614996]
[1735508417894,0.73862,3362.4,3362.3,4.65614996]
[1735508418693,0.29805,3362.0,3361.9,4.65614996]
[1735508421702,0.29806,3361.9,3361.8,4.65614996]
[1735508422702,1.15526,3361.9,3361.8,4.65614996]
[1735508424601,1.15526,3361.9,3361.7,3.2078]
[1735508424602,0.29807,3361.8,3361.7,3.2078]
[1735508428302,3.2078,3361.8,3361.5,0.4617]
[1735508428599,0.29809,3361.6,3361.5,0.4617]
[1735508428794,3.15270969,3361.7,3361.4,4.65614996]
[1735508428795,0.2981,3361.5,3361.4,4.65614996]
[1735508428993,0.29812,3361.3,3361.2,5.10344996]
[1735508430597,0.29812,3361.3,3361.2,0.4473]
[1735508433096,0.29812,3361.3,3361.0,4.65614996]
[1735508433097,1.171,3361.3,3361.0,4.65614996]
[1735508433302,5.75333969,3361.1,3361.0,4.65614996]
[1735508433504,5.45520969,3361.1,3360.9,4.65614996]
[1735508433709,0.71834,3361.0,3360.9,4.65614996]
[1735508435210,0.4202,3361.0,3360.6,3.2078]
[1735508435411,0.29817,3360.7,3360.6,3.2078]
[1735508436606,0.29818,3360.6,3360.5,0.4631]
[1735508436910,0.29818,3360.6,3360.5,3.2078]
[1735508437911,0.29816,3360.8,3360.5,3.50598]
[1735508438404,1.171,3361.1,3360.5,3.2078]
[1735508438605,0.29816,3360.9,3360.6,0.29817]
[1735508439011,0.29815,3361.0,3360.7,0.29816]
[1735508439208,0.29815,3361.0,3360.9,3.2078]
[1735508439605,0.29815,3361.0,3360.9,3.6435]
[1735508440112,1.46914,3361.1,3360.9,3.6435]
[1735508440309,0.29814,3361.1,3360.9,3.94165]
[1735508441513,0.29814,3361.1,3360.9,3.6435]
[1735508443407,1.17793,3361.6,3360.9,3.6435]
[1735508443408,0.29813,3361.2,3361.0,0.29814]
[1735508443611,1.187,3361.5,3360.9,3.6435]
[1735508443813,0.29814,3361.1,3360.9,3.94165]
[1735508445710,6.65033969,3361.7,3361.0,2.24740969]
[1735508445711,0.29809,3361.6,3361.0,2.24740969]
[1735508445913,0.29809,3361.6,3361.5,0.2981]
[1735508446413,0.2981,3361.5,3361.4,0.863]
[1735508446613,0.29809,3361.6,3361.4,1.1611]
[1735508447007,0.2981,3361.5,3361.4,1.1611]
[1735508448109,0.2981,3361.5,3361.4,0.863]
[1735508449916,0.2981,3361.5,3361.4,0.4404]
[1735508456123,0.436,3361.6,3361.2,3.2078]
[1735508456425,0.29812,3361.3,3361.2,3.2078]
[1735508459417,1.18124,3361.6,3361.1,0.4414]
[1735508459624,0.29813,3361.2,3361.1,0.4414]
[1735508460926,0.29812,3361.4,3361.2,0.29813]
[1735508461423,0.29812,3361.4,3361.3,0.4569]
[1735508461624,3.2078,3361.8,3361.3,0.4569]
[1735508461825,0.29809,3361.7,3361.5,0.2981]
[1735508462024,0.29809,3361.7,3361.4,0.29811]
[1735508462425,0.29809,3361.7,3361.5,0.4341]
[1735508462729,0.2981,3361.6,3361.5,0.4341]
[1735508463519,0.2981,3361.6,3361.5,5.09024996]
[1735508464226,0.2981,3361.6,3361.5,4.65614996]
[1735508464628,0.744,3361.6,3361.5,4.65614996]
[1735508464830,0.4459,3361.6,3361.4,4.65614996]
[1735508465030,2.54551969,3361.5,3361.4,4.65614996]
[1735508466226,2.54551969,3361.5,3361.0,7.86394996]
[1735508466434,0.29814,3361.1,3361.0,7.86394996]
[1735508467325,0.29814,3361.1,3361.0,4.65614996]
[1735508467528,3.2078,3361.4,3361.0,4.56190133]
[1735508467729,0.29814,3361.1,3361.0,4.56190133]
[1735508468527,0.29814,3361.2,3361.0,8.06785133]
[1735508468728,0.29813,3361.3,3361.1,0.29814]
[1735508469728,0.29813,3361.2,3361.0,8.06785133]
[1735508469930,0.29813,3361.3,3361.0,7.76970133]
[1735508470130,0.29813,3361.3,3361.1,0.29814]
[1735508470432,0.29813,3361.3,3361.2,4.6704506]
[1735508471341,0.4459,3361.6,3361.2,4.6704506]
[1735508471541,2.34017432,3361.7,3361.3,0.4472]
[1735508471740,2.34017432,3361.7,3361.5,0.29811]
[1735508471741,2.34017432,3361.6,3361.5,0.29811]
[1735508472443,2.63827432,3361.6,3361.5,0.29811]
[1735508473143,0.2981,3361.6,3361.5,11.84622831]
[1735508473345,0.2981,3361.6,3361.5,11.54811831]
[1735508476437,0.2981,3361.6,3361.5,11.84622831]
[1735508476637,3.2078,3361.8,3361.6,0.29809]
[1735508476638,0.29809,3361.7,3361.6,0.29809]
[1735508478546,0.29809,3361.7,3361.6,4.86030411]
[1735508480246,0.29809,3361.7,3361.6,8.06810411]
[1735508481541,0.29808,3361.8,3361.7,0.29809]
[1735508481744,0.29808,3361.8,3361.7,0.75649]
[1735508482545,0.29808,3361.8,3361.7,0.4584]
[1735508483135,0.29808,3361.8,3361.7,12.02251662]
[1735508484036,2.54548969,3361.8,3361.7,11.56411662]
[1735508484441,2.99608969,3361.8,3361.7,11.56411662]
[1735508484939,2.99608969,3361.8,3361.7,4.670809]
[1735508486443,0.29809,3361.7,3361.6,4.670809]
[1735508487761,0.29809,3361.7,3361.6,4.56315575]
[1735508490753,0.29809,3361.7,3361.6,13.89159409]
[1735508491257,0.29807,3361.9,3361.8,0.29807]
[1735508491948,0.8904,3362.1,3361.6,14.35459409]
[1735508492159,0.29807,3362.0,3361.9,0.29807]
[1735508492746,0.29807,3362.0,3361.9,1.20877]
[1735508493250,0.29807,3362.0,3361.9,0.9107]
[1735508493452,0.29807,3362.0,3361.9,5.02725575]
[1735508494857,0.29807,3362.0,3361.9,5.13345593]
[1735508499763,0.29807,3362.0,3361.9,2.57895593]
[1735508500863,0.29812,3361.3,3361.2,7.00483349]
[1735508502262,0.29812,3361.3,3361.1,7.42623349]
[1735508502462,0.29813,3361.2,3361.1,7.42623349]
[1735508504473,0.29813,3361.2,3361.1,0.4214]
[1735508509178,0.29813,3361.2,3361.1,0.8498]
[1735508509876,0.29813,3361.2,3361.1,5.36071282]
[1735508512775,0.29813,3361.2,3361.1,12.36554631]
[1735508513573,0.4269,3361.5,3361.1,12.36554631]
[1735508513780,3.2078,3361.6,3361.1,12.36554631]
[1735508513973,3.5059,3361.6,3361.4,0.29811]
[1735508514168,3.5059,3361.6,3361.5,0.4443]
[1735508514372,3.5059,3361.6,3361.5,0.9005]
[1735508515785,0.2981,3361.6,3361.5,1.19861]
[1735508515988,0.2981,3361.6,3361.5,12.71435631]
[1735508517088,0.2981,3361.6,3361.5,12.41624631]
[1735508517285,0.2981,3361.6,3361.5,11.97194631]
[1735508517487,0.2981,3361.6,3361.5,4.51091282]
[1735508517686,1.4719,3361.6,3361.5,4.51091282]
[1735508518893,0.29812,3361.3,3361.2,7.44880795]
[1735508519587,0.29812,3361.3,3361.2,7.00860795]
[1735508520301,2.24740969,3361.4,3360.9,10.21640795]
[1735508520488,0.29815,3361.0,3360.9,10.21640795]
[1735508521001,0.74975,3361.0,3360.9,10.21640795]
[1735508521800,0.74975,3361.0,3360.9,3.2078]
[1735508523202,0.29817,3360.8,3360.7,7.00860795]
[1735508523404,0.29817,3360.7,3360.6,7.00860795]
[1735508523799,3.08744611,3361.3,3360.8,0.29816]
[1735508523800,0.29815,3361.0,3360.8,0.29816]
[1735508523999,0.29815,3361.0,3360.9,3.2078]
[1735508526105,5.54993611,3361.5,3361.0,0.29815]
[1735508526106,0.29812,3361.3,3361.0,0.29815]
[1735508526300,0.29812,3361.3,3361.2,0.29812]
[1735508526497,0.29812,3361.3,3361.1,0.9119]
[1735508526698,0.29812,3361.3,3361.1,1.21004]
[1735508527001,0.29813,3361.2,3361.1,1.21004]
[1735508527200,2.34213611,3361.5,3361.1,0.9119]
[1735508527404,0.29812,3361.3,3361.2,11.82083385]
[1735508529296,0.2981,3361.6,3361.4,0.29811]
[1735508529501,2.34213611,3361.9,3361.6,0.29809]
[1735508529703,0.29808,3361.8,3361.7,0.8511]
[1735508530902,0.29808,3361.8,3361.7,0.4299]
[1735508531702,0.29809,3361.7,3361.6,7.00988021]
[1735508531999,0.29809,3361.7,3361.5,7.00988021]
[1735508532000,2.24740969,3361.7,3361.5,7.00988021]
[1735508532206,0.74709,3361.6,3361.5,7.00988021]
[1735508533305,0.29811,3361.4,3361.3,3.6377]
[1735508534906,0.29811,3361.4,3361.3,0.4299]
[1735508535905,0.29812,3361.3,3361.2,10.21768021]
[1735508537708,0.29812,3361.3,3361.2,3.2078]
[1735508538208,1.47012,3361.3,3361.2,3.2078]
[1735508542104,0.29814,3361.1,3361.0,7.44318021]
[1735508544317,0.29814,3361.1,3361.0,11.96145466]
[1735508544515,0.29814,3361.1,3361.0,11.52815466]
[1735508550117,0.29814,3361.1,3361.0,14.73595466]
[1735508550315,0.29814,3361.1,3361.0,11.52815466]
[1735508550706,0.29814,3361.1,3361.0,14.73595466]
[1735508551113,0.29814,3361.1,3361.0,11.52815466]
[1735508551318,0.29814,3361.1,3361.0,14.73595466]
[1735508551518,0.29814,3361.1,3361.0,11.52815466]
[1735508551818,0.29814,3361.1,3361.0,14.73595466]
[1735508554718,0.29814,3361.1,3361.0,17.0725814]
[1735508556019,0.29814,3361.1,3361.0,17.3707314]
[1735508556220,2.34213611,3361.5,3361.0,17.0725814]
[1735508556419,0.29811,3361.4,3361.3,0.29812]
[1735508557621,0.29811,3361.4,3361.3,13.8647814]
[1735508558220,0.29811,3361.4,3361.3,14.7690814]
[1735508558425,0.29811,3361.4,3361.3,15.0672014]
[1735508558818,0.2981,3361.6,3361.5,0.2981]
[1735508559018,0.29811,3361.4,3361.3,22.90079957]